bitfinex/quotes_ETHUSD_20260106
["timestamp","ask_amount","ask_price","bid_price","bid_amount"]
[1767666364922,0.99732116,3216.4,3216.1,0.01732379]
[1767666366329,0.99732116,3216.4,3215.5,0.93963688]
[1767666366624,0.99732116,3216.4,3215.3,4.76963688]
[1767666366999,0.99732116,3216.2,3215.3,0.93963688]
[1767666367201,0.99732116,3216.0,3215.3,0.93963688]
[1767666367525,0.99732116,3216.0,3215.2,0.001]
[1767666369132,0.99732116,3215.8,3215.2,0.001]
[1767666370757,0.99732116,3215.3,3214.5,0.94163688]
[1767666370960,0.99732116,3215.1,3214.5,0.002]
[1767666371252,0.99732116,3214.9,3214.5,0.002]
[1767666373355,0.99732116,3214.7,3214.5,0.002]
[1767666374474,0.99732116,3214.7,3214.1,0.002]
[1767666375465,4.10804905,3214.7,3214.1,0.002]
[1767666375667,0.99732116,3214.7,3214.1,0.002]
[1767666378766,0.99732116,3214.7,3214.1,0.94163688]
[1767666379183,3.11055575,3214.9,3214.1,0.94163688]
[1767666379375,4.10781497,3215.0,3214.1,0.94163688]
[1767666379581,0.72181613,3214.9,3214.1,0.94163688]
[1767666379756,4.82974206,3214.9,3214.1,0.94163688]
[1767666380452,1.71913729,3214.9,3214.1,0.94163688]
[1767666381285,0.99732116,3214.9,3214.2,0.93963688]
[1767666381957,0.99732116,3214.9,3214.3,0.03111097]
[1767666382589,0.99732116,3214.9,3214.4,0.001]
[1767666383887,4.1078598,3214.9,3214.4,0.001]
[1767666384072,1.71914924,3214.8,3214.4,0.001]
[1767666385359,0.99732116,3214.8,3214.4,0.001]
[1767666386089,4.10774106,3215.0,3214.4,0.001]
[1767666388206,0.99732116,3215.0,3214.4,0.001]
[1767666388362,3.11012267,3215.4,3214.5,0.93963688]
[1767666388556,4.10744383,3215.4,3214.5,0.93963688]
[1767666388784,0.99732116,3215.3,3214.6,0.5578487]
[1767666390678,0.99732116,3216.0,3215.0,5.57748697]
[1767666390873,1.81232116,3215.8,3215.1,0.93963688]
[1767666391256,6.21890546,3216.0,3215.2,0.97781922]
[1767666391257,3.10945273,3216.0,3215.2,0.97781922]
[1767666391467,4.04760099,3216.1,3215.3,5.61566931]
[1767666391770,0.93820436,3216.0,3215.3,5.61566931]
[1767666392507,0.93820436,3216.9,3215.7,0.97781922]
[1767666392706,6.21697232,3217.0,3215.7,0.97781922]
[1767666392707,0.93820436,3216.7,3215.7,0.97781922]
[1767666393650,0.93820436,3216.5,3215.6,4.63785009]
[1767666393811,0.93820436,3216.5,3215.4,2.852262]
[1767666394011,0.93820436,3216.5,3215.4,0.97781922]
[1767666394541,0.93820436,3216.5,3215.4,4.08781841]
[1767666394721,0.93820436,3216.5,3215.6,0.97781922]
[1767666395523,0.93820436,3216.4,3215.6,0.97781922]
[1767666395712,0.93820436,3216.4,3215.7,0.97781922]
[1767666395911,3.10878148,3216.7,3215.5,0.95406685]
[1767666395912,0.93820436,3216.7,3216.0,0.97781922]
[1767666396112,1.1135248,3216.7,3216.0,0.97781922]
[1767666396823,0.93820436,3216.7,3216.0,0.97781922]
[1767666397048,3.10868926,3216.8,3216.0,0.97781922]
[1767666397255,1.75320436,3216.9,3216.0,0.97781922]
[1767666397454,1.75320436,3216.9,3216.2,4.63785009]
[1767666397820,0.93820436,3216.8,3216.2,4.63785009]
[1767666399722,0.93820436,3216.8,3216.2,6.17723624]
[1767666400957,0.93820436,3216.8,3216.2,5.19941702]
[1767666401651,1.75320436,3217.0,3216.3,0.97781922]
[1767666401838,0.815,3217.0,3216.3,0.97781922]
[1767666403083,0.93820436,3217.5,3216.3,0.97781922]
[1767666403559,1.1135248,3217.5,3216.3,0.97781922]
[1767666404943,1.1135248,3217.5,3216.1,3.50181922]
[1767666405142,0.93820436,3217.3,3216.2,0.97781922]
[1767666406564,0.93820436,3217.1,3216.2,0.97781922]
[1767666407202,0.93820436,3217.1,3216.0,1.79181922]
[1767666407203,0.93820436,3216.9,3216.0,1.79181922]
[1767666407489,0.93820436,3216.9,3216.1,0.17918192]
[1767666407668,0.93820436,3216.9,3216.1,1.15700114]
[1767666408382,0.93820436,3216.9,3216.2,0.97781922]
[1767666408684,0.93820436,3216.9,3216.2,4.08706572]
[1767666408844,0.93820436,3217.1,3216.3,0.97781922]
[1767666409171,0.93820436,3217.1,3216.4,0.97781922]
[1767666410575,4.04660496,3217.1,3216.4,0.97781922]
[1767666411274,0.93820436,3217.0,3216.4,0.97781922]
[1767666412169,3.11033865,3217.2,3216.4,0.97781922]
[1767666412372,4.04854301,3217.2,3216.4,0.97781922]
[1767666412680,0.93820436,3217.1,3216.4,0.97781922]
[1767666413249,4.04662085,3217.1,3216.4,0.97781922]
[1767666413448,0.93820436,3217.1,3216.4,0.97781922]
[1767666413671,0.002,3217.2,3216.4,0.97781922]
[1767666414174,0.002,3217.2,3216.5,1.36914681]
[1767666414376,4.04067098,3217.2,3216.5,0.96045214]
[1767666414557,0.93233452,3217.2,3216.5,0.96045214]
[1767666416389,0.93233452,3217.2,3216.5,4.06942151]
[1767666416678,0.93033452,3217.4,3216.5,4.6557]
[1767666417178,0.93033452,3217.4,3216.1,4.00918192]
[1767666417377,0.93033452,3217.2,3216.1,0.17918192]
[1767666417685,0.93033452,3217.0,3215.8,0.96045214]
[1767666418170,0.93033452,3217.0,3215.6,0.96045214]
[1767666418348,0.93033452,3217.0,3215.7,2.024432]
[1767666418785,0.93033452,3216.8,3215.7,2.024432]
[1767666418987,0.93033452,3216.6,3215.7,2.024432]
[1767666419160,0.93033452,3216.6,3215.8,0.29848841]
[1767666419352,0.93033452,3216.6,3215.8,1.25894055]
[1767666419678,0.93033452,3216.6,3215.8,0.96045214]
[1767666421069,4.09027861,3216.5,3215.8,0.96045214]
[1767666421384,0.98130924,3216.5,3215.8,0.96045214]
[1767666421578,0.98130924,3216.5,3215.6,0.94278477]
[1767666421888,0.98130924,3216.4,3215.4,2.053]
[1767666422191,0.98130924,3216.4,3215.3,0.94278477]
[1767666422550,0.98130924,3216.4,3215.4,2.118811]
[1767666422951,0.98130924,3216.4,3215.3,0.94278477]
[1767666423353,0.98130924,3216.2,3215.4,2.544]
[1767666423551,0.98130924,3216.2,3215.5,0.34867848]
[1767666423752,0.98130924,3216.2,3214.8,0.94278477]
[1767666424062,0.98130924,3216.0,3214.8,0.94278477]
[1767666425294,0.98130924,3215.8,3214.8,0.94278477]
[1767666425887,0.98130924,3215.8,3214.6,0.94278477]
[1767666426056,0.98130924,3215.8,3214.7,1.4295532]
[1767666426459,0.98130924,3215.8,3214.4,0.94378477]
[1767666426460,0.98130924,3215.7,3214.4,0.94378477]
[1767666426673,0.98130924,3215.7,3214.4,0.001]
[1767666427180,0.98130924,3215.7,3214.4,0.94378477]
[1767666427382,0.814,3215.8,3214.4,0.94378477]
[1767666427383,0.98130924,3215.5,3214.4,0.94378477]
[1767666428290,0.98130924,3215.5,3214.5,0.94278477]
[1767666428488,0.98130924,3215.5,3214.7,0.94278477]
[1767666428689,0.98130924,3215.5,3214.4,0.001]
[1767666429456,0.98130924,3215.3,3214.4,0.001]
[1767666430991,0.98130924,3215.3,3214.4,0.94378477]
[1767666431590,0.98130924,3215.3,3214.4,0.001]
[1767666431591,0.98130924,3215.1,3214.4,0.001]
[1767666431790,0.98130924,3215.0,3214.7,0.002]
[1767666432495,0.98130924,3215.0,3214.1,0.002]
[1767666432869,0.57903365,3215.1,3214.1,0.94478477]
[1767666433273,6.22045284,3215.2,3214.1,0.94478477]
[1767666433274,7.20176208,3215.2,3214.1,0.94478477]
[1767666433476,0.98130924,3215.1,3214.1,0.94478477]
[1767666433868,3.1104199,3215.0,3214.1,0.94478477]
[1767666434064,4.09167242,3215.1,3214.1,0.94478477]
[1767666434389,0.98130924,3215.1,3214.2,0.94278477]
[1767666434591,0.98130924,3215.1,3214.4,0.94278477]
[1767666435593,4.09124548,3215.5,3214.4,0.94278477]
[1767666435760,7.20120551,3215.5,3214.4,0.94278477]
[1767666435969,4.09124548,3215.5,3214.4,0.94278477]
[1767666436263,7.20120551,3215.5,3214.4,0.94278477]
[1767666436464,4.89286603,3215.5,3214.6,0.94278477]
[1767666436785,0.40902158,3216.5,3214.8,0.94278477]
[1767666436786,0.98130924,3215.8,3214.8,0.94278477]
[1767666437972,0.98130924,3215.7,3214.6,4.05358309]
[1767666438326,0.98130924,3215.7,3214.8,0.94278477]
[1767666438596,0.98130924,3215.7,3214.9,0.94278477]
[1767666439975,0.815,3215.9,3215.0,0.94278477]
[1767666440177,0.815,3215.9,3215.1,1.34811457]
[1767666440499,3.92456563,3215.9,3215.1,1.34811457]
[1767666440667,4.90587487,3215.9,3215.1,0.94278477]
[1767666442209,0.98130924,3216.8,3215.3,0.94278477]
[1767666442415,1.79630924,3216.7,3215.3,0.94278477]
[1767666442623,0.98130924,3216.6,3215.3,0.94278477]
[1767666442773,0.98130924,3216.5,3215.3,0.94278477]
[1767666444101,0.98130924,3216.3,3215.3,0.94278477]
[1767666444603,0.98130924,3216.1,3214.8,1.75778477]
[1767666444805,0.98130924,3216.1,3214.9,2.306]
[1767666444994,0.98130924,3216.1,3214.8,1.75778477]
[1767666445195,1.16094016,3216.1,3214.9,0.17587848]
[1767666445602,1.16094016,3216.1,3214.9,1.11866325]
[1767666445892,0.98130924,3216.1,3214.9,1.11866325]
[1767666446402,0.98130924,3215.9,3214.9,1.11866325]
[1767666446990,0.98130924,3215.9,3215.0,0.94278477]
[1767666447668,1.06802071,3215.7,3214.1,0.002]
[1767666447872,0.98130924,3215.2,3214.1,0.002]
[1767666448101,0.98130924,3215.0,3214.1,0.002]
[1767666448310,0.98130924,3214.6,3214.1,0.002]
[1767666450284,3.11071017,3214.7,3214.1,0.002]
[1767666450484,3.11063762,3214.8,3214.1,0.002]
[1767666450985,3.11055458,3214.9,3214.1,0.94580931]
[1767666451382,3.110324,3215.1,3214.1,0.94580931]
[1767666451584,3.110324,3215.1,3214.2,1.12009024]
[1767666452104,0.99845637,3215.2,3214.2,1.12009024]
[1767666452479,3.92495085,3215.5,3214.2,1.12009024]
[1767666452480,3.11004983,3215.4,3214.2,1.12009024]
[1767666453083,4.92342576,3215.5,3214.3,0.94380931]
[1767666453331,3.10974282,3215.7,3214.3,0.94380931]
[1767666453509,3.10974282,3215.7,3214.2,3.28743617]
[1767666453510,3.10974282,3215.7,3214.5,0.94380931]
[1767666453675,3.10974282,3215.7,3214.7,0.94380931]
[1767666453676,7.21794201,3215.7,3214.7,0.94380931]
[1767666453878,4.10819919,3215.7,3214.7,0.94380931]
[1767666455589,0.99845637,3215.7,3214.7,0.94380931]
[1767666455902,4.92293069,3216.0,3214.8,0.94380931]
[1767666456204,3.60184249,3215.9,3214.8,0.94380931]
[1767666456376,0.002,3215.6,3214.8,0.94380931]
[1767666457189,1.00045637,3215.6,3214.4,0.94380931]
[1767666457483,1.00045637,3215.6,3214.5,0.815]
[1767666457682,1.00045637,3215.6,3214.4,0.94380931]
[1767666457683,1.00045637,3215.6,3214.4,0.815]
[1767666457888,0.99845637,3215.4,3214.4,0.815]
[1767666459233,0.99845637,3215.3,3214.4,0.815]
[1767666459582,0.99845637,3215.3,3214.3,0.815]
[1767666459783,0.99845637,3215.3,3214.2,0.17628093]
[1767666460110,0.99845637,3215.3,3214.2,0.99128093]
[1767666460282,0.99845637,3215.1,3214.2,0.99128093]
[1767666461489,4.10878357,3215.1,3214.2,0.99128093]
[1767666461703,4.10878357,3215.1,3214.2,0.815]
[1767666462000,0.99845637,3215.0,3214.2,0.815]
[1767666463486,4.10892569,3215.0,3214.2,0.815]
[1767666463686,0.99845637,3214.9,3214.2,0.815]
[1767666464186,0.99845637,3214.9,3214.2,4.86997231]
[1767666464394,0.99845637,3215.2,3214.3,0.48719723]
[1767666464714,3.11006902,3215.4,3214.4,0.94380931]
[1767666464911,3.11006902,3215.4,3214.1,3.11328498]
[1767666464912,0.99845637,3215.3,3214.1,0.94580931]
[1767666465103,0.99845637,3215.1,3214.2,0.815]
[1767666465412,0.99845637,3214.9,3214.1,0.002]
[1767666467800,0.99845637,3214.7,3214.1,0.002]
[1767666468521,0.99845637,3215.0,3214.1,0.002]
[1767666469024,0.99845637,3215.0,3214.1,0.94580931]
[1767666469025,4.10887627,3215.0,3214.1,0.94580931]
[1767666469316,4.90297487,3215.0,3214.1,0.94580931]
[1767666470026,0.002,3215.3,3214.2,0.94380931]
[1767666470027,3.11026091,3215.2,3214.2,0.94380931]
[1767666470620,4.10871728,3215.2,3214.2,0.94380931]
[1767666471125,0.99845637,3215.2,3214.3,0.815]
[1767666471323,0.002,3215.3,3214.4,0.94380931]
[1767666471617,3.11213937,3215.3,3214.4,1.11969024]
[1767666472021,0.002,3215.3,3214.5,0.94380931]
[1767666473896,0.002,3215.3,3214.7,0.94380931]
[1767666474627,0.002,3215.3,3214.8,1.76361126]
[1767666476106,0.002,3215.3,3214.9,0.94861126]
[1767666476305,0.002,3215.3,3214.9,1.43603004]
[1767666477795,0.002,3215.3,3214.8,0.815]
[1767666477995,0.002,3215.3,3214.6,4.05938686]
[1767666478241,0.002,3215.3,3214.8,0.815]
[1767666478407,0.002,3215.3,3214.8,3.92560389]
[1767666478606,0.002,3215.3,3214.8,0.815]
[1767666478918,0.002,3215.3,3214.9,0.39567782]
[1767666479728,0.91861366,3215.2,3214.8,0.002]
[1767666480226,0.91661365,3215.1,3214.8,0.002]
[1767666481000,0.91861366,3215.2,3214.8,0.002]
[1767666481837,0.91861366,3215.2,3214.8,0.95446599]
[1767666482019,1e-08,3215.2,3214.8,0.95446599]
[1767666482204,1e-08,3215.2,3214.8,1.76946599]
[1767666482530,1e-08,3215.2,3214.9,0.1769466]
[1767666482931,1e-08,3215.2,3214.9,1.12941259]
[1767666486626,1e-08,3215.2,3214.9,4.23992727]
[1767666486938,0.9079699,3215.6,3214.9,4.23992727]
[1767666487250,0.9079699,3215.6,3214.9,1.12941259]
[1767666487537,0.9079699,3215.6,3215.0,0.50569912]
[1767666487839,0.002,3215.6,3215.0,0.50569912]
[1767666488130,0.002,3215.6,3215.0,1.45816511]
[1767666488501,0.002,3215.6,3215.1,0.95246599]
[1767666488936,0.9059699,3215.8,3215.1,4.06276215]
[1767666489106,0.9059699,3215.8,3215.2,0.92046359]
[1767666489512,0.002,3215.9,3215.2,1.87292958]
[1767666489835,0.9079699,3215.9,3215.2,1.87292958]
[1767666490014,0.9079699,3215.9,3215.8,0.01732378]
[1767666495039,0.002,3215.9,3215.8,0.01732378]
[1767666496336,0.9059699,3216.3,3215.8,0.01732378]
[1767666499613,0.9059699,3216.2,3215.8,0.01732378]
[1767666501639,0.9059699,3216.6,3215.8,0.96978977]
[1767666501944,0.9059699,3216.6,3215.8,1.61178621]
[1767666502613,0.9059699,3216.6,3215.9,0.95246599]
[1767666503344,0.9059699,3216.5,3215.9,0.95246599]
[1767666503943,0.9059699,3216.5,3215.8,0.65932022]
[1767666504113,0.9059699,3216.5,3215.9,0.62479609]
[1767666504310,0.002,3216.3,3215.9,0.62479609]
[1767666508516,0.9079699,3216.3,3215.9,0.62479609]
[1767666508711,0.9079699,3216.3,3215.6,0.814]
[1767666509021,0.9079699,3216.3,3215.7,0.814]
[1767666509330,0.9079699,3216.3,3215.6,0.814]
[1767666509537,0.9079699,3216.3,3215.3,0.95246599]
[1767666509739,0.9079699,3216.3,3215.4,0.49841426]
[1767666509918,0.9079699,3216.3,3215.2,0.92146359]
[1767666509919,0.9079699,3216.6,3215.8,4.63617465]
[1767666510116,0.9079699,3216.6,3216.1,4.63617465]
[1767666510819,0.9079699,3216.6,3215.9,0.95246599]
[1767666511018,0.9079699,3216.6,3215.6,0.97002468]
[1767666511338,0.91394125,3216.5,3215.7,0.17840247]
[1767666511746,0.91394125,3216.5,3215.4,0.97002468]
[1767666512053,0.91394125,3216.5,3215.7,0.97002468]
[1767666512238,0.91394125,3216.5,3215.8,5.60619933]
[1767666515142,0.91394125,3216.5,3215.8,0.97002468]
[1767666516870,0.91394125,3216.5,3215.8,4.07965263]
[1767666517175,0.002,3216.6,3216.0,5.60619933]
[1767666517967,0.91394125,3216.8,3216.1,0.97002468]
[1767666518388,0.91394125,3216.8,3216.0,0.814]
[1767666518570,3.11065062,3216.9,3215.9,0.814]
[1767666518571,0.91394125,3216.6,3215.9,0.814]
[1767666518871,0.91394125,3216.6,3215.8,1.78402468]
[1767666519169,0.91394125,3216.6,3215.9,0.17840247]
[1767666519352,0.91394125,3216.6,3216.0,0.223054]
[1767666522953,0.91394125,3216.5,3216.0,0.223054]
[1767666529577,0.91394125,3216.5,3216.3,0.001]
[1767666536558,0.91361728,3216.7,3216.3,0.001]
[1767666536764,0.28924945,3216.6,3216.3,0.001]
[1767666537074,0.91361728,3216.7,3216.3,0.001]
[1767666537865,1.20287649,3216.6,3216.3,0.001]
[1767666538176,0.91361728,3216.6,3216.3,0.001]
[1767666540476,0.91361728,3216.6,3215.5,0.814]
[1767666540477,0.91361728,3216.4,3215.0,3.83]
[1767666540645,3.10900129,3216.5,3214.9,3.28746014]
[1767666540646,0.91361728,3216.2,3214.9,3.28746014]
[1767666540846,0.96777319,3216.0,3215.0,4.84597575]
[1767666541047,0.96777319,3216.0,3215.2,0.48569758]
[1767666541668,0.96777319,3216.0,3215.3,0.99912994]
[1767666541970,0.96777319,3216.4,3215.4,0.814]
[1767666542140,0.96777319,3216.2,3215.2,0.001]
[1767666542342,0.96777319,3216.0,3215.2,0.001]
[1767666542556,0.96777319,3215.8,3215.2,0.001]
[1767666542756,3.10954942,3215.9,3215.2,0.001]
[1767666542954,3.10954942,3215.9,3215.2,0.96902865]
[1767666543254,0.96777319,3215.8,3215.2,0.001]
[1767666545475,4.07743153,3215.8,3215.2,0.001]
[1767666546080,0.96777319,3215.7,3215.2,0.001]
[1767666546382,0.96777319,3215.6,3215.2,0.001]
[1767666547569,0.96777319,3215.5,3215.2,0.001]
[1767666552058,4.07754845,3215.7,3215.2,0.001]
[1767666552476,0.96777319,3215.6,3215.2,0.001]
[1767666552873,0.96777319,3215.6,3215.5,0.001]
[1767666553995,3.10971672,3215.8,3215.5,0.001]
[1767666554162,4.07748991,3215.8,3215.5,0.001]
[1767666554553,0.96777319,3215.8,3215.5,0.001]
[1767666555753,4.07751601,3215.7,3215.5,0.001]
[1767666555972,0.96777319,3215.6,3215.5,0.001]
[1767666557149,3.10969015,3215.8,3215.5,0.001]
[1767666557879,4.07746334,3215.8,3215.5,0.001]
[1767666558281,0.96777319,3215.7,3215.5,0.001]
[1767666558484,0.96777319,3215.7,3215.2,0.001]
[1767666559586,3.10969015,3215.8,3215.2,0.96902865]
[1767666559969,3.10954942,3215.9,3215.2,0.96902865]
[1767666560480,4.07732261,3215.9,3215.2,0.96902865]
[1767666560659,0.96777319,3215.8,3215.2,0.96902865]
[1767666560855,0.96777319,3215.8,3215.2,0.001]
[1767666562587,4.0774951,3215.8,3215.2,0.001]
[1767666564768,4.0774951,3215.8,3215.5,0.001]
[1767666565153,4.0794951,3215.8,3215.5,0.001]
[1767666565756,0.002,3215.8,3215.5,0.001]
[1767666566362,0.96977319,3215.8,3215.5,0.001]
[1767666566863,0.002,3215.8,3215.5,0.001]
[1767666567805,0.002,3215.8,3215.2,0.001]
[1767666567986,0.96977319,3215.8,3215.2,0.001]
[1767666569104,0.002,3215.8,3215.2,0.96902865]
[1767666569302,0.96977319,3215.8,3215.2,0.001]
[1767666569510,0.002,3215.8,3215.2,0.96902865]
[1767666570167,0.96977319,3215.8,3215.2,0.001]
[1767666570491,0.002,3215.8,3215.2,0.96902865]
[1767666571686,0.97335024,3215.8,3215.2,0.001]
[1767666574700,0.002,3215.8,3215.2,0.94244621]
[1767666574881,0.97335024,3215.8,3215.2,0.001]
[1767666577704,0.97335024,3215.8,3215.5,0.001]
[1767666578203,0.97135024,3215.7,3215.5,0.001]
[1767666580101,0.002,3215.8,3215.5,0.001]
[1767666582107,0.002,3215.8,3214.9,3.83]
[1767666582108,0.97335024,3215.8,3214.9,4.77144621]
[1767666582401,0.97335024,3215.8,3214.8,0.002]
[1767666582402,0.97135024,3215.6,3214.8,0.002]
[1767666582583,0.97135024,3215.4,3214.8,0.002]
[1767666583782,1.53424491,3215.7,3214.8,0.002]
[1767666583783,0.97135024,3215.2,3214.8,0.002]
[1767666584306,0.97135024,3215.0,3214.8,0.002]
[1767666585102,4.0816734,3215.1,3214.8,0.002]
[1767666585303,0.97135024,3215.0,3214.5,0.002]
[1767666586485,0.97135024,3214.8,3214.5,0.002]
[1767666587481,0.97135024,3214.8,3214.1,0.002]
[1767666589006,0.97135024,3214.6,3214.1,0.002]
[1767666589208,0.97135024,3214.5,3214.1,0.002]
[1767666589976,0.71927611,3214.6,3214.1,0.002]
[1767666590188,0.71927611,3214.6,3214.4,0.001]
[1767666590984,3.83013148,3214.6,3214.4,0.001]
[1767666592612,0.71927611,3214.6,3214.4,0.001]
[1767666592814,3.1104199,3215.0,3214.4,0.94244621]
[1767666592989,6.2208398,3215.0,3214.4,0.94244621]
[1767666593815,6.2208398,3215.0,3214.4,0.94112397]
[1767666594212,7.19219004,3215.0,3214.4,0.94112397]
[1767666595817,0.90444812,3214.9,3214.1,0.94677217]
[1767666596113,2.08088349,3214.8,3214.1,0.94677217]
[1767666597302,0.90444812,3214.6,3214.1,0.002]
[1767666598325,3.11071017,3214.7,3214.1,0.002]
[1767666599107,3.11071017,3214.7,3214.1,0.94677217]
[1767666599622,0.90444812,3214.6,3214.1,0.002]
[1767666599802,3.11071017,3214.7,3214.1,0.94677217]
[1767666600515,3.11058629,3214.9,3214.1,0.94677217]
[1767666600718,4.01489213,3215.0,3214.1,0.94677217]
[1767666601027,3.8637747,3215.0,3214.1,0.94677217]
[1767666601432,0.75333069,3215.0,3214.1,0.94677217]
[1767666601643,4.33353658,3215.1,3214.1,0.94677217]
[1767666602102,4.01468269,3215.2,3214.2,0.95762759]
[1767666602436,4.8526171,3215.5,3214.4,0.95762759]
[1767666602591,3.1120294,3215.5,3214.4,0.95962759]
[1767666602786,3.1120294,3215.5,3214.7,0.95762759]
[1767666603024,0.002,3215.5,3214.7,0.95762759]
[1767666605331,0.002,3215.5,3214.8,0.95762759]
[1767666608307,4.03562066,3215.4,3214.6,0.815]
[1767666608506,4.03562066,3215.4,3214.7,0.23324969]
[1767666609314,4.03562066,3215.4,3214.7,1.19087728]
[1767666609634,0.9255877,3215.4,3214.7,1.19087728]
[1767666610511,4.03570812,3215.4,3214.7,1.19087728]
[1767666610709,4.03570812,3215.4,3214.7,0.95762759]
[1767666611303,7.14582854,3215.4,3214.7,0.95762759]
[1767666611507,0.9255877,3215.3,3214.5,0.95762759]
[1767666612420,4.03754597,3215.5,3214.5,0.95762759]
[1767666612731,4.03754597,3215.5,3214.6,0.95762759]
[1767666613251,4.03754597,3215.5,3214.7,0.95762759]
[1767666613413,0.002,3215.5,3214.7,0.95762759]
[1767666613615,3.11194797,3215.5,3214.7,0.95762759]
[1767666614244,0.002,3215.2,3214.7,0.95762759]
[1767666617360,0.002,3215.2,3214.4,3.11299916]
[1767666617361,0.9275877,3215.2,3214.4,3.11299916]
[1767666617518,0.002,3215.2,3214.6,0.95762759]
[1767666619264,0.9275877,3215.2,3214.5,4.31856268]
[1767666619849,0.9275877,3215.2,3214.5,5.27619027]
[1767666620057,0.002,3215.2,3214.6,0.95762759]
[1767666620350,0.9275877,3215.2,3214.5,4.31856268]
[1767666620513,0.9275877,3215.2,3214.6,0.43205627]
[1767666624958,0.9255877,3215.1,3214.6,0.43205627]
[1767666625159,0.9255877,3215.1,3214.5,3.83]
[1767666625460,3.11224139,3215.2,3214.5,4.78762759]
[1767666625754,0.002,3215.2,3214.6,0.95762759]
[1767666626364,0.002,3214.9,3214.6,0.95762759]
[1767666626535,0.002,3214.9,3214.7,0.95762759]
[1767666627556,0.002,3215.2,3214.6,0.47896276]
[1767666627753,0.002,3215.2,3214.7,0.95762759]
[1767666627964,0.9275877,3215.2,3214.6,0.47896276]
[1767666628141,0.002,3215.2,3214.7,0.95762759]
[1767666629355,0.002,3215.2,3214.8,0.95762759]
[1767666630632,0.002,3215.2,3214.7,1.30165591]
[1767666630964,0.002,3215.2,3214.8,0.95762759]
[1767666634015,0.002,3215.2,3214.9,0.98604077]
[1767666634294,0.002,3215.2,3214.9,0.96933638]
[1767666635093,0.002,3215.2,3214.5,0.96933638]
[1767666636094,0.002,3215.2,3214.7,0.96933638]
[1767666639111,0.002,3214.9,3214.7,0.96933638]
[1767666641680,0.002,3215.2,3214.7,0.96933638]
[1767666642391,0.90581301,3215.1,3214.6,1.22322846]
[1767666642619,0.90781301,3215.2,3215.1,0.01919613]
[1767666646693,0.002,3215.2,3215.1,0.01919613]
[1767666647315,0.002,3215.5,3215.1,0.01919613]
[1767666647715,0.002,3215.5,3215.1,0.33216127]
[1767666647915,0.002,3215.5,3215.1,0.01919613]
[1767666648097,0.90581301,3215.6,3215.1,0.01919613]
[1767666650817,0.002,3215.8,3215.1,0.01919613]
[1767666651019,0.002,3216.5,3215.4,0.96933638]
[1767666651326,0.002,3216.5,3215.6,0.96933638]
[1767666651327,0.90781301,3216.5,3215.6,0.96933638]
[1767666651528,0.90781301,3216.5,3215.8,0.96933638]
[1767666651889,0.002,3216.5,3215.8,0.96933638]
[1767666653124,0.002,3216.5,3215.9,1.78433638]
[1767666653296,0.002,3216.5,3216.0,0.17843364]
[1767666653617,0.002,3216.5,3216.0,1.14777002]
[1767666653818,0.002,3216.5,3215.6,0.96933638]
[1767666654117,0.002,3216.5,3215.7,0.96933638]
[1767666654118,0.90781301,3216.5,3215.7,0.96933638]
[1767666654292,3.10906603,3216.4,3215.7,0.96933638]
[1767666654494,0.96856741,3216.3,3215.5,0.815]
[1767666654823,0.96856741,3216.3,3215.6,0.99932846]
[1767666655125,0.96856741,3216.3,3215.7,0.18143285]
[1767666656006,0.96856741,3216.3,3215.7,1.18076131]
[1767666656708,3.11101068,3216.5,3215.7,1.18076131]
[1767666657109,4.07957809,3216.5,3215.7,1.18076131]
[1767666658198,7.18861329,3216.5,3215.7,1.18076131]
[1767666658394,4.07957809,3216.5,3215.7,1.18076131]
[1767666658593,4.07773011,3216.3,3215.7,0.18143285]
[1767666658792,0.96856741,3216.2,3215.0,0.99932846]
[1767666658992,0.96856741,3216.2,3215.1,0.99932846]
[1767666659196,0.96856741,3216.2,3214.6,0.99932846]
[1767666659197,0.96856741,3216.1,3214.6,0.99932846]
[1767666659418,0.96856741,3216.1,3214.8,0.99932846]
[1767666659627,0.96856741,3215.9,3214.9,1.18066131]
[1767666660394,0.96856741,3215.9,3214.4,0.002]
[1767666660597,0.96856741,3215.6,3214.4,0.002]
[1767666661428,0.94866921,3215.4,3214.4,0.002]
[1767666661829,0.94866921,3215.0,3214.1,0.002]
[1767666662017,0.94866921,3214.9,3214.1,0.002]
[1767666662218,0.94866921,3214.7,3214.1,0.002]
[1767666663629,4.05942067,3214.7,3214.1,0.002]
[1767666663838,0.17636692,3214.8,3214.1,0.002]
[1767666664012,0.17636692,3214.8,3214.1,0.99456397]
[1767666665116,4.23567239,3214.8,3214.1,0.002]
[1767666665318,0.94866921,3214.6,3214.0,0.002]
[1767666667017,3.11090371,3214.5,3214.0,0.002]
[1767666667906,4.05951095,3214.6,3214.0,0.002]
[1767666669035,7.17035269,3214.6,3214.0,0.002]
[1767666669240,0.79049747,3214.5,3214.0,0.002]
[1767666671312,3.90149409,3214.5,3214.0,0.002]
[1767666671806,3.90149409,3214.5,3213.5,0.002]
[1767666671807,0.94866921,3214.4,3213.6,0.99256397]
[1767666672010,10.12348733,3214.5,3213.4,3.832]
[1767666672011,0.94866921,3214.2,3213.4,0.002]
[1767666673842,4.05996008,3214.1,3213.4,0.002]
[1767666674044,0.94866921,3214.3,3213.4,0.99456397]
[1767666674213,0.31111892,3214.2,3213.4,0.99456397]
[1767666674542,3.92591982,3214.5,3213.4,0.99456397]
[1767666674543,0.815,3214.5,3213.4,0.99456397]
[1767666674721,3.92592101,3214.5,3213.6,0.99256397]
[1767666675310,0.94966921,3214.2,3213.4,0.002]
[1767666675712,4.05996008,3214.1,3213.4,0.002]
[1767666677444,0.94866921,3214.1,3213.4,0.002]
[1767666677836,4.05996028,3214.1,3213.4,0.99456397]
[1767666678142,0.94866921,3214.1,3213.4,0.99456397]
[1767666678342,0.94866921,3214.1,3213.4,0.002]
[1767666678343,0.94866921,3214.0,3213.4,0.002]
[1767666678568,0.94866921,3214.0,3213.2,0.002]
[1767666680234,0.94866921,3213.8,3213.2,0.002]
[1767666680434,0.94866921,3213.8,3213.0,0.09288584]
[1767666681648,0.94866921,3213.7,3212.4,3.83]
[1767666681948,0.94866921,3213.5,3212.3,0.99456397]
[1767666682144,0.94866921,3213.5,3212.5,0.99456397]
[1767666682451,3.11196863,3213.4,3212.6,0.99456397]
[1767666682749,4.06063784,3213.4,3212.6,0.99456397]
[1767666683050,0.55860336,3213.6,3212.6,0.99456397]